[Event "Early-Titled-Tuesday-Blitz-May-07-2024"]
[Site "Chess.com"]
[Date "2024.05.07"]
[Round "3"]
[White "Mrlammy"]
[Black "MarijaKuznecova"]
[Result "1/2-1/2"]
[WhiteElo "2585"]
[BlackElo "2423"]
[TimeControl "180+1"]
[EndTime "8:33:09 PDT"]
[Termination "Game drawn by repetition"]

1. d4 {[%clk 0:03:00.9]} 1... Nf6 {[%clk 0:02:59.3]} 2. c4 {[%clk 0:03:01.3]}
2... c5 {[%clk 0:02:58.5]} 3. d5 {[%clk 0:03:00.8]} 3... b5 {[%clk 0:02:56.8]}
4. cxb5 {[%clk 0:03:01.7]} 4... a6 {[%clk 0:02:56.8]} 5. bxa6 {[%clk 0:03:02.6]}
5... g6 {[%clk 0:02:56.6]} 6. Nc3 {[%clk 0:03:02.9]} 6... Bg7 {[%clk 0:02:57.1]}
7. e4 {[%clk 0:03:03.3]} 7... O-O {[%clk 0:02:57.8]} 8. Bc4 {[%clk 0:02:57]}
8... Qa5 {[%clk 0:02:56.4]} 9. a7 {[%clk 0:02:48.1]} 9... Rxa7 {[%clk
0:02:30.1]} 10. Bd2 {[%clk 0:02:44.6]} 10... Qb6 {[%clk 0:02:07.4]} 11. Qc2
{[%clk 0:02:36.3]} 11... d6 {[%clk 0:02:05]} 12. Nge2 {[%clk 0:02:30.4]} 12...
Ba6 {[%clk 0:01:53.6]} 13. b3 {[%clk 0:02:26.6]} 13... Nfd7 {[%clk 0:01:36]} 14.
O-O {[%clk 0:02:18.4]} 14... Ne5 {[%clk 0:01:33.2]} 15. Na4 {[%clk 0:01:51.3]}
15... Qb7 {[%clk 0:01:25.2]} 16. Bxa6 {[%clk 0:01:44.7]} 16... Nxa6 {[%clk
0:01:15.8]} 17. Rac1 {[%clk 0:01:39.1]} 17... Nb4 {[%clk 0:01:09.7]} 18. Bxb4
{[%clk 0:01:37.7]} 18... Qxb4 {[%clk 0:01:10.6]} 19. Rfd1 {[%clk 0:01:32.8]}
19... c4 {[%clk 0:01:00.8]} 20. Rd4 {[%clk 0:00:56.3]} 20... Nf3+ {[%clk
0:00:32.6]} 21. gxf3 {[%clk 0:00:51]} 21... Bxd4 {[%clk 0:00:33.5]} 22. Qxc4
{[%clk 0:00:26.5]} 22... Qxc4 {[%clk 0:00:26.6]} 23. Rxc4 {[%clk 0:00:27.4]}
23... Bf6 {[%clk 0:00:24.5]} 24. Nc1 {[%clk 0:00:21.9]} 24... Rb8 {[%clk
0:00:16.3]} 25. Nd3 {[%clk 0:00:21]} 25... Rbb7 {[%clk 0:00:13.1]} 26. Nb4
{[%clk 0:00:19.6]} 26... Rc7 {[%clk 0:00:12.7]} 27. Nc6 {[%clk 0:00:19.7]} 27...
Rab7 {[%clk 0:00:12.2]} 28. Kf1 {[%clk 0:00:18.2]} 28... e6 {[%clk 0:00:12.1]}
29. Ke2 {[%clk 0:00:10]} 29... Kg7 {[%clk 0:00:12.4]} 30. Kd3 {[%clk 0:00:10.2]}
30... exd5 {[%clk 0:00:12.4]} 31. exd5 {[%clk 0:00:11.1]} 31... Rb5 {[%clk
0:00:12.7]} 32. Nb4 {[%clk 0:00:08.4]} 32... Re7 {[%clk 0:00:10.8]} 33. Nc6
{[%clk 0:00:05.7]} 33... Rxd5+ {[%clk 0:00:09.6]} 34. Kc2 {[%clk 0:00:05.3]}
34... Re2+ {[%clk 0:00:09.7]} 35. Kc1 {[%clk 0:00:05.7]} 35... Bg5+ {[%clk
0:00:09.5]} 36. f4 {[%clk 0:00:06.3]} 36... Bf6 {[%clk 0:00:08.3]} 37. Nc3
{[%clk 0:00:06.2]} 37... Bxc3 {[%clk 0:00:07.6]} 38. Rxc3 {[%clk 0:00:07.1]}
38... Rxf2 {[%clk 0:00:08]} 39. Nb4 {[%clk 0:00:06.8]} 39... Rh5 {[%clk
0:00:06.4]} 40. Nc2 {[%clk 0:00:06.7]} 40... Rhxh2 {[%clk 0:00:06.6]} 41. a4
{[%clk 0:00:07.2]} 41... Rxf4 {[%clk 0:00:04]} 42. Kb2 {[%clk 0:00:07.1]} 42...
Rf5 {[%clk 0:00:04.3]} 43. b4 {[%clk 0:00:06.9]} 43... Rh4 {[%clk 0:00:04]} 44.
Kb3 {[%clk 0:00:07.1]} 44... Rhf4 {[%clk 0:00:03.9]} 45. a5 {[%clk 0:00:07.6]}
45... h5 {[%clk 0:00:04]} 46. Ne3 {[%clk 0:00:07.9]} 46... Re5 {[%clk
0:00:03.3]} 47. Nc4 {[%clk 0:00:08]} 47... Ree4 {[%clk 0:00:03.5]} 48. a6 {[%clk
0:00:08.3]} 48... Re8 {[%clk 0:00:03.9]} 49. Nxd6 {[%clk 0:00:08.4]} 49... Ra8
{[%clk 0:00:04]} 50. b5 {[%clk 0:00:09]} 50... Rf6 {[%clk 0:00:04.2]} 51. Rc6
{[%clk 0:00:08.8]} 51... h4 {[%clk 0:00:03.5]} 52. a7 {[%clk 0:00:09.4]} 52...
Rxa7 {[%clk 0:00:03]} 53. Ne8+ {[%clk 0:00:09.7]} 53... Kf8 {[%clk 0:00:03.3]}
54. Nxf6 {[%clk 0:00:10.6]} 54... h3 {[%clk 0:00:03.3]} 55. Rc3 {[%clk
0:00:10.8]} 55... Kg7 {[%clk 0:00:03.1]} 56. Ng4 {[%clk 0:00:10.1]} 56... f5
{[%clk 0:00:03.4]} 57. Ne5 {[%clk 0:00:10.5]} 57... Kf6 {[%clk 0:00:03.3]} 58.
b6 {[%clk 0:00:09.5]} 58... Rb7 {[%clk 0:00:03.3]} 59. Nc4 {[%clk 0:00:09]}
59... g5 {[%clk 0:00:02.9]} 60. Rxh3 {[%clk 0:00:09.5]} 60... g4 {[%clk
0:00:03.3]} 61. Rh6+ {[%clk 0:00:09.8]} 61... Kg5 {[%clk 0:00:03.2]} 62. Rc6
{[%clk 0:00:10.4]} 62... f4 {[%clk 0:00:03.3]} 63. Rc7 {[%clk 0:00:10.9]} 63...
Rxb6+ {[%clk 0:00:03.2]} 64. Nxb6 {[%clk 0:00:11.5]} 64... g3 {[%clk 0:00:03.8]}
65. Rc1 {[%clk 0:00:11.7]} 65... f3 {[%clk 0:00:04]} 66. Nd5 {[%clk 0:00:12.3]}
66... f2 {[%clk 0:00:02.5]} 67. Ne3 {[%clk 0:00:10.7]} 67... Kf4 {[%clk
0:00:03.1]} 68. Ng2+ {[%clk 0:00:09.1]} 68... Kf3 {[%clk 0:00:03.2]} 69. Nh4+
{[%clk 0:00:09.7]} 69... Kg4 {[%clk 0:00:03.6]} 70. Ng2 {[%clk 0:00:10.3]} 70...
Kf3 {[%clk 0:00:04]} 71. Nh4+ {[%clk 0:00:10.9]} 71... Kg4 {[%clk 0:00:04.4]}
72. Ng2 {[%clk 0:00:11.4]} 72... Kf3 {[%clk 0:00:04.9]} 1/2-1/2

[Event "Early-Titled-Tuesday-Blitz-May-07-2024"]
[Site "Chess.com"]
[Date "2024.05.07"]
[Round "3"]
[White "GMAkobianSTL"]
[Black "BogdanDeac"]
[Result "0-1"]
[WhiteElo "2803"]
[BlackElo "3095"]
[TimeControl "180+1"]
[EndTime "8:33:10 PDT"]
[Termination "BogdanDeac won on time"]

1. d4 {[%clk 0:02:46.2]} 1... Nf6 {[%clk 0:02:59.6]} 2. c4 {[%clk 0:02:45.5]}
2... e6 {[%clk 0:03:00]} 3. Nf3 {[%clk 0:02:45.3]} 3... d5 {[%clk 0:02:57.8]} 4.
cxd5 {[%clk 0:02:45.1]} 4... exd5 {[%clk 0:02:57.7]} 5. Nc3 {[%clk 0:02:45.2]}
5... c6 {[%clk 0:02:58.1]} 6. Qc2 {[%clk 0:02:45]} 6... g6 {[%clk 0:02:50.8]} 7.
Bg5 {[%clk 0:02:41]} 7... Be7 {[%clk 0:02:49.9]} 8. e3 {[%clk 0:02:40.5]} 8...
Bf5 {[%clk 0:02:47.9]} 9. Bd3 {[%clk 0:02:40.3]} 9... Bxd3 {[%clk 0:02:48.2]}
10. Qxd3 {[%clk 0:02:39.7]} 10... Nbd7 {[%clk 0:02:48.8]} 11. O-O {[%clk
0:02:39.3]} 11... O-O {[%clk 0:02:49.3]} 12. Qc2 {[%clk 0:02:38.8]} 12... a5
{[%clk 0:02:48.1]} 13. Rab1 {[%clk 0:02:35.2]} 13... Re8 {[%clk 0:02:48.1]} 14.
Rfc1 {[%clk 0:02:28.7]} 14... Nb6 {[%clk 0:02:46]} 15. h3 {[%clk 0:02:21.7]}
15... Nh5 {[%clk 0:02:32.7]} 16. Bxe7 {[%clk 0:02:17.4]} 16... Qxe7 {[%clk
0:02:33.6]} 17. Ne5 {[%clk 0:02:10.8]} 17... Ng7 {[%clk 0:02:27]} 18. Na4 {[%clk
0:02:09.6]} 18... Nxa4 {[%clk 0:02:24.6]} 19. Qxa4 {[%clk 0:02:09.1]} 19... Nf5
{[%clk 0:02:24.8]} 20. Qc2 {[%clk 0:01:53.1]} 20... Nd6 {[%clk 0:02:20.6]} 21.
Qc5 {[%clk 0:01:52.4]} 21... Qe6 {[%clk 0:02:16.5]} 22. a4 {[%clk 0:01:45]}
22... Ne4 {[%clk 0:02:02.3]} 23. Qc2 {[%clk 0:01:38.6]} 23... Qe7 {[%clk
0:02:00.7]} 24. Nd3 {[%clk 0:01:34.2]} 24... Nd6 {[%clk 0:01:46.3]} 25. Qc5
{[%clk 0:01:32.9]} 25... Ne4 {[%clk 0:00:51.3]} 26. Qxe7 {[%clk 0:01:31.3]}
26... Rxe7 {[%clk 0:00:52.2]} 27. Rc2 {[%clk 0:01:25]} 27... Nd6 {[%clk
0:00:43.7]} 28. b3 {[%clk 0:01:23]} 28... g5 {[%clk 0:00:39.6]} 29. g4 {[%clk
0:01:13]} 29... Kg7 {[%clk 0:00:38.2]} 30. Kg2 {[%clk 0:01:12.7]} 30... h5
{[%clk 0:00:37.6]} 31. gxh5 {[%clk 0:01:05.3]} 31... Kh6 {[%clk 0:00:21.5]} 32.
h4 {[%clk 0:00:47.8]} 32... gxh4 {[%clk 0:00:18.6]} 33. Nf4 {[%clk 0:00:47.6]}
33... Rg8+ {[%clk 0:00:15]} 34. Kf3 {[%clk 0:00:47.3]} 34... Ree8 {[%clk
0:00:06.4]} 35. Rh1 {[%clk 0:00:45.8]} 35... Nf5 {[%clk 0:00:06.2]} 36. Rc5
{[%clk 0:00:45.2]} 36... Ra8 {[%clk 0:00:06.3]} 37. Ng2 {[%clk 0:00:38.4]} 37...
Rg5 {[%clk 0:00:02.8]} 38. Nxh4 {[%clk 0:00:36.1]} 38... Nd6 {[%clk 0:00:03]}
39. Ng2 {[%clk 0:00:27.5]} 39... Ne4 {[%clk 0:00:02.7]} 40. Rc2 {[%clk
0:00:23.3]} 40... Rxh5 {[%clk 0:00:03.1]} 41. Rxh5+ {[%clk 0:00:22.6]} 41...
Kxh5 {[%clk 0:00:04]} 42. Nf4+ {[%clk 0:00:22.5]} 42... Kg5 {[%clk 0:00:04.4]}
43. Nd3 {[%clk 0:00:19.9]} 43... Kf5 {[%clk 0:00:04.3]} 44. Nc5 {[%clk
0:00:19.8]} 44... Nd6 {[%clk 0:00:04.6]} 45. Rc1 {[%clk 0:00:19.6]} 45... Rh8
{[%clk 0:00:05.1]} 46. Rg1 {[%clk 0:00:18.8]} 46... Kf6 {[%clk 0:00:05.5]} 47.
Ke2 {[%clk 0:00:17.3]} 47... Ke7 {[%clk 0:00:05.5]} 48. Rg2 {[%clk 0:00:16.6]}
48... Kf6 {[%clk 0:00:05.4]} 49. Rg1 {[%clk 0:00:16.5]} 49... Ke7 {[%clk
0:00:05.8]} 50. Kd3 {[%clk 0:00:15.6]} 50... Rh2 {[%clk 0:00:05.3]} 51. Ke2
{[%clk 0:00:14.9]} 51... b6 {[%clk 0:00:05.5]} 52. Nd3 {[%clk 0:00:14.8]} 52...
Ne4 {[%clk 0:00:05.8]} 53. Kf3 {[%clk 0:00:12.9]} 53... c5 {[%clk 0:00:05.5]}
54. dxc5 {[%clk 0:00:12.6]} 54... bxc5 {[%clk 0:00:06.4]} 55. Rc1 {[%clk
0:00:12]} 55... Kd6 {[%clk 0:00:06.5]} 56. Rc2 {[%clk 0:00:11.6]} 56... f6
{[%clk 0:00:06.3]} 57. Nf4 {[%clk 0:00:11.5]} 57... Ke5 {[%clk 0:00:05.5]} 58.
Nd3+ {[%clk 0:00:11.4]} 58... Kd6 {[%clk 0:00:06.1]} 59. Nf4 {[%clk 0:00:11.8]}
59... Rh1 {[%clk 0:00:06.2]} 60. Ne2 {[%clk 0:00:06.1]} 60... Rb1 {[%clk
0:00:05.1]} 61. Nc3 {[%clk 0:00:06.2]} 61... Nxc3 {[%clk 0:00:05.2]} 62. Rxc3
{[%clk 0:00:06.6]} 62... Rb2 {[%clk 0:00:05.8]} 63. Kg3 {[%clk 0:00:06.2]} 63...
f5 {[%clk 0:00:05.9]} 64. f3 {[%clk 0:00:06]} 64... d4 {[%clk 0:00:06.3]} 65.
Rd3 {[%clk 0:00:05.3]} 65... Ke5 {[%clk 0:00:06.1]} 66. exd4+ {[%clk 0:00:02.6]}
66... cxd4 {[%clk 0:00:07]} 0-1

[Event "Early-Titled-Tuesday-Blitz-May-07-2024"]
[Site "Chess.com"]
[Date "2024.05.07"]
[Round "3"]
[White "Mikhail_Golubev"]
[Black "RamonManon0g"]
[Result "1-0"]
[WhiteElo "2621"]
[BlackElo "2451"]
[TimeControl "180+1"]
[EndTime "8:33:11 PDT"]
[Termination "Mikhail_Golubev won by checkmate"]

1. e4 {[%clk 0:03:00.9]} 1... c5 {[%clk 0:02:55.3]} 2. Nf3 {[%clk 0:03:00]} 2...
d6 {[%clk 0:02:54.8]} 3. d4 {[%clk 0:02:59.9]} 3... cxd4 {[%clk 0:02:55.7]} 4.
Nxd4 {[%clk 0:03:00]} 4... Nf6 {[%clk 0:02:56.4]} 5. Nc3 {[%clk 0:03:00.1]} 5...
a6 {[%clk 0:02:57.3]} 6. Bc4 {[%clk 0:03:00]} 6... e6 {[%clk 0:02:57.5]} 7. Bb3
{[%clk 0:03:00.1]} 7... b5 {[%clk 0:02:57.6]} 8. O-O {[%clk 0:02:59.4]} 8... Qc7
{[%clk 0:02:57.3]} 9. Re1 {[%clk 0:02:55.6]} 9... Be7 {[%clk 0:02:57.3]} 10. a4
{[%clk 0:02:54.8]} 10... b4 {[%clk 0:02:56.8]} 11. Na2 {[%clk 0:02:54.3]} 11...
a5 {[%clk 0:02:56.3]} 12. c3 {[%clk 0:02:52.5]} 12... bxc3 {[%clk 0:02:55.6]}
13. Nxc3 {[%clk 0:02:53]} 13... O-O {[%clk 0:02:49.2]} 14. Ndb5 {[%clk
0:02:47.7]} 14... Qd8 {[%clk 0:02:42.2]} 15. Bf4 {[%clk 0:02:38.4]} 15... e5
{[%clk 0:02:36.3]} 16. Bg5 {[%clk 0:02:37.8]} 16... Nc6 {[%clk 0:02:30.7]} 17.
Bxf6 {[%clk 0:02:34.7]} 17... Bxf6 {[%clk 0:02:31.6]} 18. Nxd6 {[%clk
0:02:17.1]} 18... Nd4 {[%clk 0:02:29.4]} 19. Ndb5 {[%clk 0:01:53.1]} 19... Bh4
{[%clk 0:02:19.8]} 20. Bd5 {[%clk 0:01:27.7]} 20... Qf6 {[%clk 0:02:10.2]} 21.
Bxa8 {[%clk 0:01:00.1]} 21... Bxf2+ {[%clk 0:01:32.4]} 22. Kh1 {[%clk 0:01:00]}
22... Qh4 {[%clk 0:01:32.6]} 23. Nxd4 {[%clk 0:00:41]} 23... exd4 {[%clk
0:01:31.2]} 24. Ne2 {[%clk 0:00:20.8]} 24... Bg4 {[%clk 0:01:27.3]} 25. Bd5
{[%clk 0:00:20.1]} 25... Bg3 {[%clk 0:01:24.5]} 26. Nxg3 {[%clk 0:00:20.1]}
26... Bxd1 {[%clk 0:01:24.1]} 27. Raxd1 {[%clk 0:00:20.8]} 27... Qf6 {[%clk
0:01:15.8]} 28. Nf5 {[%clk 0:00:15.9]} 28... Qb6 {[%clk 0:01:11.6]} 29. b3
{[%clk 0:00:14.4]} 29... g6 {[%clk 0:01:06.5]} 30. Nxd4 {[%clk 0:00:14.1]} 30...
Kg7 {[%clk 0:01:06.3]} 31. Rf1 {[%clk 0:00:13.4]} 31... h5 {[%clk 0:00:56.8]}
32. h3 {[%clk 0:00:13.2]} 32... h4 {[%clk 0:00:56.3]} 33. Rf3 {[%clk 0:00:13.4]}
33... Kh6 {[%clk 0:00:49.9]} 34. Ne2 {[%clk 0:00:12.1]} 34... f5 {[%clk
0:00:45.7]} 35. Rdf1 {[%clk 0:00:11.1]} 35... Qa6 {[%clk 0:00:42.6]} 36. Nc3
{[%clk 0:00:10.7]} 36... f4 {[%clk 0:00:36.9]} 37. Rxf4 {[%clk 0:00:08.6]} 37...
Rxf4 {[%clk 0:00:36.8]} 38. Rxf4 {[%clk 0:00:08.2]} 38... Qd3 {[%clk 0:00:36]}
39. Rf3 {[%clk 0:00:07.6]} 39... Qd2 {[%clk 0:00:33.9]} 40. Bc4 {[%clk
0:00:07.3]} 40... Qe1+ {[%clk 0:00:33.7]} 41. Kh2 {[%clk 0:00:07]} 41... Qd2
{[%clk 0:00:32.3]} 42. Ne2 {[%clk 0:00:06.5]} 42... Qd6+ {[%clk 0:00:31.3]} 43.
Kg1 {[%clk 0:00:05.6]} 43... Qc5+ {[%clk 0:00:30.9]} 44. Kh1 {[%clk 0:00:05.6]}
44... Qe5 {[%clk 0:00:30.2]} 45. Kg1 {[%clk 0:00:05.3]} 45... Qxe4 {[%clk
0:00:30]} 46. Rf4 {[%clk 0:00:04]} 46... Qe3+ {[%clk 0:00:25.8]} 47. Kh1 {[%clk
0:00:04.3]} 47... g5 {[%clk 0:00:24.8]} 48. Rg4 {[%clk 0:00:04.5]} 48... Qf2
{[%clk 0:00:21]} 49. Nd4 {[%clk 0:00:04.2]} 49... Qe1+ {[%clk 0:00:19.8]} 50.
Kh2 {[%clk 0:00:04.4]} 50... Qe5+ {[%clk 0:00:20.5]} 51. Kg1 {[%clk 0:00:04.8]}
51... Qe3+ {[%clk 0:00:20.2]} 52. Kf1 {[%clk 0:00:04.9]} 52... Qd2 {[%clk
0:00:18.3]} 53. Nf3 {[%clk 0:00:03.1]} 53... Qd1+ {[%clk 0:00:17.2]} 54. Kf2
{[%clk 0:00:03.3]} 54... Qc2+ {[%clk 0:00:17.6]} 55. Kg1 {[%clk 0:00:03.2]}
55... Qc1+ {[%clk 0:00:16.2]} 56. Kh2 {[%clk 0:00:03]} 56... Qe3 {[%clk
0:00:16.2]} 57. Nxg5 {[%clk 0:00:02.5]} 57... Qe5+ {[%clk 0:00:15.8]} 58. Kg1
{[%clk 0:00:02.8]} 58... Qc5+ {[%clk 0:00:15.4]} 59. Kh1 {[%clk 0:00:02.9]}
59... Qf2 {[%clk 0:00:13.7]} 60. Nf3 {[%clk 0:00:03.2]} 60... Qf1+ {[%clk
0:00:13.8]} 61. Bxf1 {[%clk 0:00:02.1]} 61... Kh5 {[%clk 0:00:13.3]} 62. Rxh4+
{[%clk 0:00:03]} 62... Kg6 {[%clk 0:00:11.6]} 63. Rg4+ {[%clk 0:00:03.9]} 63...
Kh5 {[%clk 0:00:11.8]} 64. Rh4+ {[%clk 0:00:04.5]} 64... Kg6 {[%clk 0:00:12.2]}
65. Rc4 {[%clk 0:00:04.9]} 65... Kh5 {[%clk 0:00:12.4]} 66. Rc5+ {[%clk
0:00:05.8]} 66... Kh6 {[%clk 0:00:12.6]} 67. Rxa5 {[%clk 0:00:06.3]} 67... Kg6
{[%clk 0:00:13]} 68. g4 {[%clk 0:00:06.8]} 68... Kh6 {[%clk 0:00:13.9]} 69. h4
{[%clk 0:00:07.3]} 69... Kh7 {[%clk 0:00:14.1]} 70. Ra6 {[%clk 0:00:07.9]} 70...
Kg7 {[%clk 0:00:13.8]} 71. g5 {[%clk 0:00:08.5]} 71... Kh7 {[%clk 0:00:14.1]}
72. h5 {[%clk 0:00:09.2]} 72... Kg7 {[%clk 0:00:14.6]} 73. Nh4 {[%clk
0:00:09.6]} 73... Kh7 {[%clk 0:00:14.9]} 74. Bc4 {[%clk 0:00:10]} 74... Kh8
{[%clk 0:00:15.1]} 75. h6 {[%clk 0:00:08.7]} 75... Kh7 {[%clk 0:00:15.3]} 76.
Ra7+ {[%clk 0:00:09.3]} 76... Kh8 {[%clk 0:00:15.5]} 77. Ng6# {[%clk 0:00:10]}
1-0

[Event "Early-Titled-Tuesday-Blitz-May-07-2024"]
[Site "Chess.com"]
[Date "2024.05.07"]
[Round "3"]
[White "ChEsper99"]
[Black "colegiodemadrid"]
[Result "1-0"]
[WhiteElo "2290"]
[BlackElo "2546"]
[TimeControl "180+1"]
[EndTime "8:33:12 PDT"]
[Termination "ChEsper99 won by resignation"]

1. Nf3 {[%clk 0:03:00]} 1... d5 {[%clk 0:02:54.2]} 2. g3 {[%clk 0:02:57]} 2...
Nf6 {[%clk 0:02:52.2]} 3. Bg2 {[%clk 0:02:56.6]} 3... e6 {[%clk 0:02:51.3]} 4.
O-O {[%clk 0:02:55.3]} 4... Be7 {[%clk 0:02:51.8]} 5. d4 {[%clk 0:02:55.2]} 5...
O-O {[%clk 0:02:52.4]} 6. c4 {[%clk 0:02:55.2]} 6... c6 {[%clk 0:02:46.9]} 7. b3
{[%clk 0:02:45.9]} 7... a5 {[%clk 0:02:47.2]} 8. Nc3 {[%clk 0:02:45.4]} 8... Bb4
{[%clk 0:02:46.1]} 9. Bb2 {[%clk 0:02:34.1]} 9... Qe7 {[%clk 0:02:44.3]} 10. Ne5
{[%clk 0:02:28.4]} 10... Ba3 {[%clk 0:02:43.7]} 11. Bxa3 {[%clk 0:02:25.9]}
11... Qxa3 {[%clk 0:02:44.6]} 12. Qc1 {[%clk 0:02:25.3]} 12... Qxc1 {[%clk
0:02:43.8]} 13. Raxc1 {[%clk 0:02:24.1]} 13... Nbd7 {[%clk 0:02:44.4]} 14. Nxd7
{[%clk 0:02:20]} 14... Nxd7 {[%clk 0:02:38.4]} 15. e4 {[%clk 0:02:15.6]} 15...
dxe4 {[%clk 0:02:38]} 16. Bxe4 {[%clk 0:02:15.4]} 16... Nf6 {[%clk 0:02:37.9]}
17. Bg2 {[%clk 0:02:15.1]} 17... Rd8 {[%clk 0:02:38.4]} 18. Rfd1 {[%clk
0:02:15]} 18... Kf8 {[%clk 0:02:38]} 19. f4 {[%clk 0:02:13.1]} 19... Ne8 {[%clk
0:02:37.2]} 20. d5 {[%clk 0:02:11.7]} 20... cxd5 {[%clk 0:02:35.4]} 21. cxd5
{[%clk 0:02:11.8]} 21... Nd6 {[%clk 0:02:32.8]} 22. Na4 {[%clk 0:01:59.7]} 22...
exd5 {[%clk 0:02:17.4]} 23. Nb6 {[%clk 0:01:37.3]} 23... Rb8 {[%clk 0:02:16.5]}
24. Rxd5 {[%clk 0:01:29.6]} 24... Be6 {[%clk 0:02:11.4]} 25. Rdc5 {[%clk
0:01:25.7]} 25... Nf5 {[%clk 0:02:03.8]} 26. Rxa5 {[%clk 0:00:49]} 26... Rd2
{[%clk 0:01:50.2]} 27. Bh3 {[%clk 0:00:48.9]} 27... g6 {[%clk 0:01:44.2]} 28.
Rac5 {[%clk 0:00:41.5]} 28... Nd4 {[%clk 0:01:41.5]} 29. Bxe6 {[%clk 0:00:34.5]}
29... Ne2+ {[%clk 0:01:30.9]} 30. Kf1 {[%clk 0:00:21.8]} 30... Nxc1 {[%clk
0:01:29.1]} 31. Nd7+ {[%clk 0:00:22.1]} 31... Ke7 {[%clk 0:01:21.4]} 32. Nxb8
{[%clk 0:00:21.3]} 32... Rd1+ {[%clk 0:01:22]} 33. Kg2 {[%clk 0:00:20.8]} 33...
Kxe6 {[%clk 0:01:16]} 34. Rc7 {[%clk 0:00:21.1]} 34... b5 {[%clk 0:01:09.2]} 35.
Rb7 {[%clk 0:00:20.3]} 35... Rd2+ {[%clk 0:01:06.4]} 36. Kh3 {[%clk 0:00:19.9]}
36... Rd5 {[%clk 0:00:54.1]} 37. Nc6 {[%clk 0:00:16.7]} 37... Nxa2 {[%clk
0:00:43.1]} 38. Rxb5 {[%clk 0:00:15.5]} 38... Rd2 {[%clk 0:00:32.8]} 39. Ne5
{[%clk 0:00:12.7]} 39... f6 {[%clk 0:00:29.5]} 40. Rb6+ {[%clk 0:00:12.5]} 40...
Kf5 {[%clk 0:00:29.4]} 41. Ng4 {[%clk 0:00:10.4]} 41... h5 {[%clk 0:00:22.6]}
42. Rxf6+ {[%clk 0:00:10.7]} 42... Ke4 {[%clk 0:00:22.5]} 43. Nh6 {[%clk
0:00:09.1]} 43... Nc3 {[%clk 0:00:20.5]} 44. Rxg6 {[%clk 0:00:09.1]} 44... Ne2
{[%clk 0:00:18.4]} 45. Kh4 {[%clk 0:00:06.6]} 45... Ng1 {[%clk 0:00:16.7]} 46.
Kxh5 {[%clk 0:00:06.9]} 46... Rxh2+ {[%clk 0:00:16.9]} 47. Kg4 {[%clk
0:00:07.3]} 47... Nh3 {[%clk 0:00:15.9]} 48. Re6+ {[%clk 0:00:06]} 48... Kd5
{[%clk 0:00:15.8]} 49. Re5+ {[%clk 0:00:06.4]} 49... Kd6 {[%clk 0:00:15.5]} 50.
Nf5+ {[%clk 0:00:07.3]} 50... Kd7 {[%clk 0:00:15.2]} 51. Ne3 {[%clk 0:00:07.7]}
51... Nf2+ {[%clk 0:00:14.3]} 52. Kf3 {[%clk 0:00:07.7]} 52... Nh3 {[%clk
0:00:13.7]} 53. f5 {[%clk 0:00:07.5]} 53... Ng1+ {[%clk 0:00:13.8]} 54. Ke4
{[%clk 0:00:07.5]} 54... Re2 {[%clk 0:00:12.5]} 55. f6 {[%clk 0:00:06.4]} 55...
Rf2 {[%clk 0:00:11.2]} 56. Rf5 {[%clk 0:00:03.7]} 56... Rxf5 {[%clk 0:00:10.2]}
57. Kxf5 {[%clk 0:00:04.6]} 57... Ne2 {[%clk 0:00:10.2]} 58. g4 {[%clk
0:00:05.1]} 58... Nd4+ {[%clk 0:00:10]} 59. Kg6 {[%clk 0:00:05.6]} 59... Nxb3
{[%clk 0:00:10.1]} 60. f7 {[%clk 0:00:05.5]} 60... Ke7 {[%clk 0:00:08.9]} 61.
Kg7 {[%clk 0:00:06.1]} 61... Nd4 {[%clk 0:00:09.5]} 62. Nf5+ {[%clk 0:00:06.6]}
62... Kd7 {[%clk 0:00:08.5]} 63. Nxd4 {[%clk 0:00:06.6]} 1-0